fUSD/lending_fUSD_20250221
["ID","MTS","AMOUNT","RATE_DAILY","PERIOD"]
[353880848,1740109842922,-501.85988045,0.00013424,2]
[353880851,1740109842934,-500.0,0.00013424,2]
[353880853,1740109842943,-500.0,0.00013424,2]
[353880855,1740109842953,-500.0,0.00013424,2]
[353880858,1740109842963,-500.0,0.00013424,2]
[353880860,1740109842973,-500.0,0.00013424,2]
[353880862,1740109842983,-500.0,0.00013424,2]
[353880864,1740109842992,-500.0,0.00013424,2]
[353880866,1740109843001,-500.0,0.00013424,2]
[353880867,1740109843011,-539.63417724,0.00013424,2]
[353880869,1740109843021,-500.0,0.00013424,2]
[353880873,1740109843030,-500.0,0.00013424,2]
[353880875,1740109843040,-500.0,0.00013424,2]
[353880877,1740109843049,-505.17,0.00013424,2]
[353880879,1740109843058,-500.0,0.00013424,2]
[353880881,1740109843067,-500.0,0.00013424,2]
[353880883,1740109843076,-500.0,0.00013424,2]
[353880885,1740109843085,-503.88450249,0.00013424,2]
[353880887,1740109843095,-500.0,0.00013424,2]
[353880889,1740109843104,-501.07961953,0.00013424,2]
[353880892,1740109843112,-500.0,0.00013424,2]
[353880894,1740109843121,-500.0,0.00013424,2]
[353880896,1740109843130,-500.0,0.00013424,2]
[353880898,1740109843140,-500.0,0.00013424,2]
[353880900,1740109843149,-525.93,0.00013424,2]
[353880902,1740109843159,-500.0,0.00013424,2]
[353880904,1740109843168,-500.0,0.00013424,2]
[353880906,1740109843177,-503.42194626,0.00013424,2]
[353880908,1740109843186,-500.0,0.00013424,2]
[353880910,1740109843195,-508.90741965,0.00013424,2]
[353880912,1740109843204,-500.0,0.00013424,2]
[353880914,1740109843213,-500.0,0.00013424,2]
[353880916,1740109843223,-503.29478243,0.00013424,2]
[353880918,1740109843232,-500.0,0.00013424,2]
[353880920,1740109843241,-502.16547851,0.00013424,2]
[353880922,1740109843250,-558.87471543,0.00013424,2]
[353880924,1740109843259,-500.0,0.00013424,2]
[353880926,1740109843268,-500.0,0.00013424,2]
[353880928,1740109843278,-500.0,0.00013424,2]
[353880930,1740109843287,-500.0,0.00013424,2]
[353880932,1740109843296,-632.90350681,0.00013424,2]
[353880934,1740109843305,-500.0,0.00013424,2]
[353880936,1740109843315,-500.0,0.00013424,2]
[353880938,1740109843324,-501.14814004,0.00013424,2]
[353880940,1740109843333,-639.78,0.00013424,2]
[353880942,1740109843342,-500.0,0.00013424,2]
[353880944,1740109843351,-773.0,0.00013424,2]
[353880946,1740109843360,-500.0,0.00013424,2]
[353880948,1740109843369,-508.37999262,0.00013424,2]
[353880950,1740109843379,-500.0,0.00013424,2]
[353880952,1740109843387,-500.0,0.00013424,2]
[353880954,1740109843396,-502.4695436,0.00013424,2]
[353880956,1740109843406,-500.0,0.00013424,2]
[353880958,1740109843415,-501.15742052,0.00013424,2]
[353880960,1740109843424,-502.18580726,0.00013424,2]
[353880962,1740109843433,-503.69882678,0.00013424,2]
[353880964,1740109843442,-500.0,0.00013424,2]
[353880966,1740109843451,-500.0,0.00013424,2]
[353880968,1740109843460,-739.54,0.00013424,2]
[353880970,1740109843471,-506.86136967,0.00013424,2]
[353880972,1740109843480,-500.0,0.00013424,2]
[353880974,1740109843489,-739.54,0.00013424,2]
[353880976,1740109843498,-500.0,0.00013424,2]
[353880978,1740109843508,-500.0,0.00013424,2]
[353880980,1740109843517,-739.54,0.00013424,2]
[353880982,1740109843526,-500.0,0.00013424,2]
[353880984,1740109843535,-739.54,0.00013424,2]
[353880986,1740109843544,-739.54,0.00013424,2]
[353880989,1740109843554,-500.0,0.00013424,2]
[353880991,1740109843563,-500.0,0.00013424,2]
[353880993,1740109843572,-506.18257217,0.00013424,2]
[353880995,1740109843581,-500.0,0.00013424,2]
[353880996,1740109843591,-500.0,0.00013424,2]
[353880999,1740109843600,-503.50373538,0.00013424,2]
[353881002,1740109843609,-502.93041549,0.00013424,2]
[353881005,1740109843618,-500.0,0.00013424,2]
[353881008,1740109843627,-506.00909102,0.00013424,2]
[353881011,1740109843636,-500.0,0.00013424,2]
[353881014,1740109843645,-500.0,0.00013424,2]
[353881016,1740109843655,-500.0,0.00013424,2]
[353881019,1740109843664,-500.0,0.00013424,2]
[353881020,1740109843673,-500.0,0.00013424,2]
[353881022,1740109843682,-502.97083888,0.00013424,2]
[353881024,1740109843691,-500.0,0.00013424,2]
[353881026,1740109843700,-587.71,0.00013424,2]
[353881028,1740109843709,-500.0,0.00013424,2]
[353881030,1740109843718,-500.0,0.00013424,2]
[353881032,1740109843727,-500.0,0.00013424,2]
[353881034,1740109843736,-500.0,0.00013424,2]
[353881036,1740109843745,-500.0,0.00013424,2]
[353881038,1740109843754,-500.0,0.00013424,2]
[353881040,1740109843763,-522.77028834,0.00013424,2]
[353881042,1740109843772,-500.74336477,0.00013424,2]
[353881044,1740109843782,-500.0,0.00013424,2]
[353881046,1740109843791,-500.0,0.00013424,2]
[353881048,1740109843800,-500.0,0.00013424,2]
[353881050,1740109843809,-501.89050042,0.00013424,2]
[353881052,1740109843819,-500.0,0.00013424,2]
[353881054,1740109843828,-500.0,0.00013424,2]
[353881056,1740109843838,-500.0,0.00013424,2]
[353881058,1740109843847,-621.81,0.00013424,2]
[353881060,1740109843856,-509.90875244,0.00013424,2]
[353881062,1740109843865,-500.0,0.00013424,2]
[353881064,1740109843874,-500.0,0.00013424,2]
[353881066,1740109843883,-500.0,0.00013424,2]
[353881068,1740109843892,-500.0,0.00013424,2]
[353881070,1740109843901,-500.0,0.00013424,2]
[353881072,1740109843910,-503.11071362,0.00013424,2]
[353881074,1740109843919,-500.0,0.00013424,2]
[353881076,1740109843928,-500.0,0.00013424,2]
[353881078,1740109843941,-500.0,0.00013424,2]
[353881080,1740109843950,-500.0,0.00013424,2]
[353881082,1740109843959,-500.0,0.00013424,2]
[353881084,1740109843968,-500.0,0.00013424,2]
[353881086,1740109843978,-528.38966563,0.00013424,2]
[353881088,1740109843987,-500.0,0.00013424,2]
[353881090,1740109843996,-500.0,0.00013424,2]
[353881092,1740109844006,-500.0,0.00013424,2]
[353881094,1740109844015,-500.0,0.00013424,2]
[353881096,1740109844024,-510.0031269,0.00013424,2]
[353881098,1740109844033,-500.0,0.00013424,2]
[353881100,1740109844043,-500.0,0.00013424,2]
[353881102,1740109844052,-500.0,0.00013424,2]
[353881104,1740109844061,-500.0,0.00013424,2]
[353881106,1740109844070,-500.0,0.00013424,2]
[353881108,1740109844079,-500.0,0.00013424,2]
[353881110,1740109844088,-502.26020036,0.00013424,2]
[353881112,1740109844097,-500.0,0.00013424,2]
[353881114,1740109844107,-500.0,0.00013424,2]
[353881116,1740109844116,-500.0,0.00013424,2]
[353881118,1740109844125,-500.0,0.00013424,2]
[353881120,1740109844134,-525.32582854,0.00013424,2]
[353881122,1740109844143,-500.0,0.00013424,2]
[353881124,1740109844152,-607.38,0.00013424,2]
[353881126,1740109844161,-500.0,0.00013424,2]
[353881128,1740109844170,-500.0,0.00013424,2]
[353881130,1740109844180,-500.0,0.00013424,2]
[353881132,1740109844190,-500.0,0.00013424,2]
[353881134,1740109844199,-503.68375132,0.00013424,2]
[353881136,1740109844208,-500.0,0.00013424,2]
[353881138,1740109844217,-500.0,0.00013424,2]
[353881140,1740109844227,-500.0,0.00013424,2]
[353881142,1740109844236,-500.0,0.00013424,2]
[353881144,1740109844245,-500.0,0.00013424,2]
[353881146,1740109844254,-500.0,0.00013424,2]
[353881148,1740109844264,-500.0,0.00013424,2]
[353881150,1740109844273,-502.84202439,0.00013424,2]
[353881152,1740109844283,-500.0,0.00013424,2]
[353881154,1740109844292,-505.13466918,0.00013424,2]
[353881156,1740109844301,-500.0,0.00013424,2]
[353881158,1740109844310,-500.0,0.00013424,2]
[353881160,1740109844319,-500.0,0.00013424,2]
[353881162,1740109844328,-500.0,0.00013424,2]
[353881164,1740109844337,-500.0,0.00013424,2]
[353881166,1740109844346,-500.0,0.00013424,2]
[353881168,1740109844355,-504.02817814,0.00013424,2]
[353881170,1740109844364,-502.35350924,0.00013424,2]
[353881172,1740109844373,-500.0,0.00013424,2]
[353881174,1740109844382,-500.0,0.00013424,2]
[353881176,1740109844391,-500.0,0.00013424,2]
[353881178,1740109844400,-504.2418578,0.00013424,2]
[353881180,1740109844409,-503.45256294,0.00013424,2]
[353881182,1740109844418,-500.0,0.00013424,2]
[353881184,1740109844429,-500.0,0.00013424,2]
[353881186,1740109844438,-500.0,0.00013424,2]
[353881188,1740109844448,-554.31285366,0.00013424,2]
[353881190,1740109844457,-500.0,0.00013424,2]
[353881192,1740109844466,-500.0,0.00013424,2]
[353881207,1740109844598,-1000.0,0.00013424,2]
[353881209,1740109844608,-500.0,0.00013424,2]
[353881212,1740109844617,-506.75226403,0.00013424,2]
[353881214,1740109844626,-504.76131703,0.00013424,2]
[353881215,1740109844635,-500.0,0.00013424,2]
[353881217,1740109844644,-500.0,0.00013424,2]
[353881218,1740109844654,-505.00667061,0.00013424,2]
[353881219,1740109844666,-500.9271894,0.00013424,2]
[353881220,1740109844675,-504.95179721,0.00013424,2]
[353881221,1740109844684,-500.0,0.00013424,2]
[353881222,1740109844693,-500.0,0.00013424,2]
[353881223,1740109844702,-504.20741358,0.00013424,2]
[353881224,1740109844711,-500.0,0.00013424,2]
[353881225,1740109844720,-500.0,0.00013424,2]
[353881226,1740109844728,-506.66147469,0.00013424,2]
[353881227,1740109844737,-500.0,0.00013424,2]
[353881229,1740109844747,-503.06722141,0.00013424,2]
[353881231,1740109844755,-508.33556418,0.00013424,2]
[353881233,1740109844764,-500.0,0.00013424,2]
[353881235,1740109844774,-500.0,0.00013424,2]
[353881238,1740109844784,-610.02431532,0.00013424,2]
[353881239,1740109844793,-500.0,0.00013424,2]
[353881241,1740109844802,-500.0,0.00013424,2]
[353881243,1740109844811,-330.09957934,0.00013424,2]
[353881245,1740109844820,-500.0,0.00013424,2]
[353881247,1740109844830,-500.0,0.00013424,2]
[353881250,1740109844839,-503.24522238,0.00013424,2]
[353881251,1740109844847,-500.0,0.00013424,2]
[353881253,1740109844856,-508.40055726,0.00013424,2]
[353881255,1740109844866,-500.0,0.00013424,2]
[353881257,1740109844875,-500.0,0.00013424,2]
[353881260,1740109844885,-500.0,0.00013424,2]
[353881262,1740109844894,-500.0,0.00013424,2]
[353881264,1740109844903,-503.80170359,0.00013424,2]
[353881266,1740109844913,-500.0,0.00013424,2]
[353881268,1740109844922,-500.0,0.00013424,2]
[353881270,1740109844935,-500.0,0.00013424,2]
[353881272,1740109844944,-500.0,0.00013424,2]
[353881274,1740109844954,-500.0,0.00013424,2]
[353881276,1740109844963,-506.04405843,0.00013424,2]
[353881278,1740109844974,-438.12848658,0.00013424,2]
[353881306,1740109845233,-65.83623131,0.00013424,2]
[353881308,1740109845242,-451.75420172,0.00013424,2]
[353881311,1740109845253,-48.24579828,0.00013424,2]
[353881313,1740109845263,-500.0,0.00013424,2]
[353881315,1740109845272,-500.0,0.00013424,2]
[353881316,1740109845283,-500.0,0.00013424,2]
[353881318,1740109845295,-502.87142745,0.00013424,2]
[353881321,1740109845305,-616.4,0.00013424,2]
[353881322,1740109845314,-507.72835843,0.00013424,2]
[353881325,1740109845324,-510.13297067,0.00013424,2]
[353881326,1740109845333,-337.66792646,0.00013424,2]
[353881329,1740109845345,-162.33207354,0.00013424,2]
[353881331,1740109845354,-238.53413293,0.00013424,2]
[353881334,1740109845375,-102.49676073,0.00013424,2]
[353881336,1740109845384,-502.83047167,0.00013424,2]
[353881338,1740109845394,-503.72089546,0.00013424,2]
[353881340,1740109845403,-501.79045351,0.00013424,2]
[353881342,1740109845412,-500.0,0.00013424,2]
[353881344,1740109845422,-597.80891574,0.00013424,2]
[353881347,1740109845432,-500.0,0.00013424,2]
[353881349,1740109845441,-440.32456608,0.00013424,2]
[353881351,1740109845451,-500.0,0.00013424,2]
[353881353,1740109845460,-838.38,0.00013424,2]
[353881354,1740109845475,-838.38,0.00013424,2]
[353881357,1740109845486,-838.38,0.00013424,2]
[353881359,1740109845496,-838.38,0.00013424,2]
[353881361,1740109845506,-500.0,0.00013424,2]
[353881362,1740109845516,-838.38,0.00013424,2]
[353881364,1740109845527,-500.0,0.00013424,2]
[353881367,1740109845536,-507.07598688,0.00013424,2]
[353881368,1740109845546,-506.06766034,0.00013424,2]
[353881370,1740109845555,-500.0,0.00013424,2]
[353881373,1740109845565,-500.0,0.00013424,2]
[353881374,1740109845574,-500.0,0.00013424,2]
[353881377,1740109845583,-500.0,0.00013424,2]
[353881378,1740109845593,-513.35017201,0.00013424,2]
[353881380,1740109845602,-500.0,0.00013424,2]
[353881382,1740109845611,-500.0,0.00013424,2]
[353881384,1740109845620,-500.92825323,0.00013424,2]
[353881386,1740109845629,-503.66434262,0.00013424,2]
[353881388,1740109845638,-500.0,0.00013424,2]
[353881390,1740109845647,-500.0,0.00013424,2]
[353881392,1740109845656,-634.07000629,0.00013424,2]
[353881394,1740109845665,-500.0,0.00013424,2]
[353881396,1740109845674,-500.0,0.00013424,2]
[353881398,1740109845683,-500.0,0.00013424,2]
[353881400,1740109845692,-500.0,0.00013424,2]
[353881402,1740109845701,-500.0,0.00013424,2]
[353881404,1740109845710,-502.68779219,0.00013424,2]
[353881406,1740109845719,-500.0,0.00013424,2]
[353881408,1740109845728,-500.0,0.00013424,2]
[353881410,1740109845737,-500.0,0.00013424,2]
[353881412,1740109845746,-500.0,0.00013424,2]
[353881414,1740109845755,-500.0,0.00013424,2]
[353881416,1740109845765,-497.21090908,0.00013424,2]
[353881418,1740109845774,-500.0,0.00013424,2]
[353881420,1740109845783,-512.35669075,0.00013424,2]
[353881422,1740109845792,-506.2155281,0.00013424,2]
[353881424,1740109845802,-503.05273901,0.00013424,2]
[353881426,1740109845811,-500.0,0.00013424,2]
[353881428,1740109845819,-500.0,0.00013424,2]
[353881430,1740109845828,-500.0,0.00013424,2]
[353881432,1740109845837,-500.0,0.00013424,2]
[353881434,1740109845847,-500.0,0.00013424,2]
[353881436,1740109845856,-500.0,0.00013424,2]
[353881438,1740109845865,-500.0,0.00013424,2]
[353881440,1740109845875,-500.0,0.00013424,2]
[353881442,1740109845885,-500.0,0.00013424,2]
[353881444,1740109845894,-500.0,0.00013424,2]
[353881446,1740109845903,-509.14093025,0.00013424,2]
[353881448,1740109845913,-500.0,0.00013424,2]
[353881450,1740109845922,-500.0,0.00013424,2]
[353881452,1740109845935,-500.0,0.00013424,2]
[353881454,1740109845944,-500.0,0.00013424,2]
[353881456,1740109845954,-503.41365133,0.00013424,2]
[353881458,1740109845963,-500.0,0.00013424,2]
[353881460,1740109845973,-500.0,0.00013424,2]
[353881462,1740109845983,-500.0,0.00013424,2]
[353881464,1740109845992,-500.0,0.00013424,2]
[353881466,1740109846002,-500.0,0.00013424,2]
[353881468,1740109846012,-500.0,0.00013424,2]
[353881470,1740109846021,-500.0,0.00013424,2]
[353881472,1740109846031,-502.72940442,0.00013424,2]
[353881474,1740109846040,-500.0,0.00013424,2]
[353881476,1740109846049,-500.0,0.00013424,2]
[353881478,1740109846059,-504.16297076,0.00013424,2]
[353881480,1740109846068,-500.0,0.00013424,2]
[353881482,1740109846077,-500.0,0.00013424,2]
[353881484,1740109846086,-500.0,0.00013424,2]
[353881486,1740109846096,-500.0,0.00013424,2]
[353881488,1740109846105,-500.0,0.00013424,2]
[353881490,1740109846115,-501.58083255,0.00013424,2]
[353881492,1740109846124,-500.0,0.00013424,2]
[353881494,1740109846134,-500.0,0.00013424,2]
[353881496,1740109846143,-500.0,0.00013424,2]
[353881498,1740109846153,-500.0,0.00013424,2]
[353881500,1740109846162,-504.82608051,0.00013424,2]
[353881502,1740109846171,-500.0,0.00013424,2]
[353881504,1740109846180,-507.07702729,0.00013424,2]
[353881506,1740109846190,-500.0,0.00013424,2]
[353881508,1740109846199,-500.0,0.00013424,2]
[353881510,1740109846208,-509.38272763,0.00013424,2]
[353881512,1740109846218,-500.88785138,0.00013424,2]
[353881514,1740109846227,-501.83395996,0.00013424,2]
[353881516,1740109846236,-500.0,0.00013424,2]
[353881518,1740109846245,-500.0,0.00013424,2]
[353881520,1740109846254,-417.39217425,0.00013424,2]
[353881522,1740109846263,-501.83119452,0.00013424,2]
[353881524,1740109846272,-500.0,0.00013424,2]
[353881526,1740109846281,-500.0,0.00013424,2]
[353881528,1740109846291,-500.0,0.00013424,2]
[353881530,1740109846300,-500.0,0.00013424,2]
[353881532,1740109846309,-500.0,0.00013424,2]
[353881534,1740109846318,-583.04,0.00013424,2]
[353881536,1740109846328,-500.0,0.00013424,2]
[353881538,1740109846337,-500.0,0.00013424,2]
[353881540,1740109846346,-639.31,0.00013424,2]
[353881542,1740109846356,-500.0,0.00013424,2]
[353881544,1740109846365,-500.0,0.00013424,2]
[353881546,1740109846375,-500.0,0.00013424,2]
[353881548,1740109846384,-230.36763631,0.00013424,2]
[353881550,1740109846394,-500.0,0.00013424,2]
[353881552,1740109846403,-500.0,0.00013424,2]
[353881554,1740109846413,-610.07237692,0.00013424,2]
[353881556,1740109846422,-530.97303951,0.00013424,2]
[353881558,1740109846432,-504.93,0.00013424,2]
[353881560,1740109846441,-500.0,0.00013424,2]
[353881562,1740109846450,-501.71053493,0.00013424,2]
[353881564,1740109846459,-500.0,0.00013424,2]
[353881566,1740109846469,-500.0,0.00013424,2]
[353881568,1740109846478,-502.34852722,0.00013424,2]
[353881570,1740109846487,-386.74994052,0.00013424,2]
[353881572,1740109846496,-502.87460945,0.00013424,2]
[353881574,1740109846506,-500.0,0.00013424,2]
[353881576,1740109846515,-151.0,0.00013424,2]
[353881578,1740109846525,-500.0,0.00013424,2]
[353881580,1740109846535,-505.78926916,0.00013424,2]
[353881582,1740109846544,-503.31077515,0.00013424,2]
[353881584,1740109846553,-500.0,0.00013424,2]
[353881586,1740109846563,-500.0,0.00013424,2]
[353881588,1740109846572,-500.0,0.00013424,2]
[353881590,1740109846581,-500.0,0.00013424,2]
[353881592,1740109846590,-500.0,0.00013424,2]
[353881594,1740109846599,-500.0,0.00013424,2]
[353881596,1740109846609,-238.68354481,0.00013424,2]
[353881598,1740109846618,-504.98313561,0.00013424,2]
[353881600,1740109846627,-501.09750864,0.00013424,2]
[353881602,1740109846636,-500.0,0.00013424,2]
[353881604,1740109846645,-500.0,0.00013424,2]
[353881606,1740109846655,-500.0,0.00013424,2]
[353881608,1740109846663,-502.83604643,0.00013424,2]
[353881610,1740109846673,-503.40590609,0.00013424,2]
[353881612,1740109846682,-340.4369532,0.00013424,2]
[353881613,1740109846692,-500.0,0.00013424,2]
[353881615,1740109846701,-506.87200523,0.00013424,2]
[353881617,1740109846710,-500.0,0.00013424,2]
[353881619,1740109846719,-500.0,0.00013424,2]
[353881621,1740109846729,-500.0,0.00013424,2]
[353881623,1740109846738,-500.0,0.00013424,2]
[353881625,1740109846747,-500.0,0.00013424,2]
[353881627,1740109846756,-500.0,0.00013424,2]
[353881629,1740109846765,-500.0,0.00013424,2]
[353881631,1740109846774,-500.0,0.00013424,2]
[353881633,1740109846784,-500.0,0.00013424,2]
[353881635,1740109846793,-374.75246373,0.00013424,2]
[353881637,1740109846803,-500.0,0.00013424,2]
[353881638,1740109846812,-500.0,0.00013424,2]
[353881639,1740109846822,-500.0,0.00013424,2]
[353881640,1740109846832,-500.0,0.00013424,2]
[353881641,1740109846841,-500.0,0.00013424,2]
[353881642,1740109846851,-505.13335222,0.00013424,2]
[353881643,1740109846860,-151.421418,0.00013424,2]
[353881644,1740109846870,-500.0,0.00013424,2]
[353881645,1740109846879,-500.0,0.00013424,2]
[353881646,1740109846888,-500.0,0.00013424,2]
[353881648,1740109846898,-500.0,0.00013424,2]
[353881650,1740109846907,-500.8515616,0.00013424,2]
[353881652,1740109846916,-503.83783047,0.00013424,2]
[353881654,1740109846926,-500.0,0.00013424,2]
[353881656,1740109846939,-500.60234615,0.00013424,2]
[353881658,1740109846948,-223.23056432,0.00013424,2]
[353881660,1740109846958,-500.0,0.00013424,2]
[353881662,1740109846967,-606.28,0.00013424,2]
[353881664,1740109846976,-512.53856675,0.00013424,2]
[353881666,1740109846986,-501.84723868,0.00013424,2]
[353881668,1740109846995,-500.0,0.00013424,2]
[353881670,1740109847004,-500.0,0.00013424,2]
[353881672,1740109847014,-500.0,0.00013424,2]
[353881688,1740109847153,-500.0,0.00013424,2]
[353881690,1740109847162,-500.00000001,0.00013424,2]
[353881692,1740109847172,-500.0,0.00013424,2]
[353881694,1740109847181,-500.57379158,0.00013424,2]
[353881696,1740109847191,-503.38024977,0.00013424,2]
[353881698,1740109847199,-500.0,0.00013424,2]
[353881700,1740109847209,-500.0,0.00013424,2]
[353881702,1740109847218,-500.0,0.00013424,2]
[353881704,1740109847227,-151.0,0.00013424,2]
[353881706,1740109847236,-501.27128872,0.00013424,2]
[353881708,1740109847245,-503.58286142,0.00013424,2]
[353881710,1740109847255,-500.0,0.00013424,2]
[353881712,1740109847264,-500.0,0.00013424,2]
[353881714,1740109847273,-500.0,0.00013424,2]
[353881716,1740109847282,-500.0,0.00013424,2]
[353881718,1740109847292,-504.45730326,0.00013424,2]
[353881720,1740109847302,-500.0,0.00013424,2]
[353881722,1740109847311,-500.0,0.00013424,2]
[353881724,1740109847320,-500.0,0.00013424,2]
[353881726,1740109847329,-500.0,0.00013424,2]
[353881728,1740109847339,-500.0,0.00013424,2]
[353881730,1740109847348,-500.0,0.00013424,2]
[353881732,1740109847357,-405.46622222,0.00013424,2]
[353881734,1740109847367,-500.0,0.00013424,2]
[353881736,1740109847376,-505.87408695,0.00013424,2]
[353881738,1740109847385,-500.0,0.00013424,2]
[353881740,1740109847394,-500.0,0.00013424,2]
[353881742,1740109847403,-500.0,0.00013424,2]
[353881744,1740109847412,-500.0,0.00013424,2]
[353881746,1740109847421,-500.0,0.00013424,2]
[353881748,1740109847430,-501.19420009,0.00013424,2]
[353881750,1740109847439,-500.0,0.00013424,2]
[353881752,1740109847448,-500.0,0.00013424,2]
[353881754,1740109847457,-500.0,0.00013424,2]
[353881756,1740109847466,-500.0,0.00013424,2]
[353881758,1740109847498,-500.0,0.00013424,2]
[353881760,1740109847508,-500.0,0.00013424,2]
[353881762,1740109847518,-500.55682449,0.00013424,2]
[353881764,1740109847527,-504.50337073,0.00013424,2]
[353881766,1740109847536,-500.0,0.00013424,2]
[353881768,1740109847546,-500.56006269,0.00013424,2]
[353881770,1740109847555,-502.70329866,0.00013424,2]
[353881772,1740109847565,-501.79156618,0.00013424,2]
[353881774,1740109847574,-500.0,0.00013424,2]
[353881776,1740109847584,-500.0,0.00013424,2]
[353881778,1740109847593,-500.0,0.00013424,2]
[353881780,1740109847602,-501.70538871,0.00013424,2]
[353881782,1740109847612,-500.0,0.00013424,2]
[353881784,1740109847621,-500.0,0.00013424,2]
[353881786,1740109847630,-500.0,0.00013424,2]
[353881788,1740109847639,-500.0,0.00013424,2]
[353881790,1740109847648,-500.0,0.00013424,2]
[353881792,1740109847657,-500.0,0.00013424,2]
[353881794,1740109847666,-500.0,0.00013424,2]
[353881796,1740109847675,-500.0,0.00013424,2]
[353881798,1740109847685,-500.0,0.00013424,2]
[353881800,1740109847694,-501.82046801,0.00013424,2]
[353881802,1740109847703,-501.72010031,0.00013424,2]
[353881804,1740109847712,-500.0,0.00013424,2]
[353881806,1740109847721,-500.0,0.00013424,2]
[353881808,1740109847731,-500.0,0.00013424,2]
[353881810,1740109847739,-500.0,0.00013424,2]
[353881811,1740109847748,-570.32304355,0.00013424,2]
[353881813,1740109847758,-500.0,0.00013424,2]
[353881816,1740109847768,-523.49676011,0.00013424,2]
[353881817,1740109847778,-500.0,0.00013424,2]
[353881819,1740109847787,-500.0,0.00013424,2]
[353881821,1740109847797,-500.0,0.00013424,2]
[353881823,1740109847806,-500.0,0.00013424,2]
[353881825,1740109847815,-500.0,0.00013424,2]
[353881827,1740109847824,-500.0,0.00013424,2]
[353881829,1740109847834,-500.0,0.00013424,2]
[353881831,1740109847843,-500.0,0.00013424,2]
[353881833,1740109847852,-151.0,0.00013424,2]
[353881835,1740109847861,-500.0,0.00013424,2]
[353881837,1740109847870,-500.38232627,0.00013424,2]
[353881839,1740109847879,-151.0,0.00013424,2]
[353881840,1740109847889,-500.0,0.00013424,2]
[353881842,1740109847898,-500.0,0.00013424,2]
[353881844,1740109847907,-500.0,0.00013424,2]
[353881846,1740109847916,-500.0,0.00013424,2]
[353881847,1740109847925,-500.0,0.00013424,2]
[353881849,1740109847937,-500.0,0.00013424,2]
[353881851,1740109847947,-500.0,0.00013424,2]
[353881852,1740109847956,-500.0,0.00013424,2]
[353881854,1740109847965,-500.0,0.00013424,2]
[353881856,1740109847975,-500.0,0.00013424,2]
[353881857,1740109847984,-500.0,0.00013424,2]
[353881859,1740109847993,-501.10201649,0.00013424,2]
[353881861,1740109848002,-500.0,0.00013424,2]
[353881863,1740109848012,-500.0,0.00013424,2]
[353881864,1740109848022,-501.23400709,0.00013424,2]
[353881866,1740109848031,-504.95213665,0.00013424,2]
[353881868,1740109848041,-151.0,0.00013424,2]
[353881870,1740109848051,-500.0,0.00013424,2]
[353881871,1740109848060,-500.0,0.00013424,2]
[353881873,1740109848070,-500.0,0.00013424,2]
[353881875,1740109848079,-500.0,0.00013424,2]
[353881877,1740109848089,-1000.0,0.00013455,2]
[353881878,1740109848099,-1000.0,0.00013469,2]
[353881880,1740109848108,-500.0,0.00013473,2]
[353881882,1740109848118,-150.0,0.00013476,2]
[353881883,1740109848128,-150.0,0.00013476,2]